[Event "Titled Tuesday Blitz April 12 Late 2022"]
[White "Guzman Moneo, Alberto"]
[Black "Quintiliano Pinto, Renato R."]
[WhiteFideId "2209616"]
[BlackFideId "2117568"]
[WhiteElo "2168"]
[BlackElo "2731"]
[Result "1/2-1/2"]
[Round "02"]
[TimeControl "180+1"]
[Date "2022.04.13"]
[WhiteClock "0:00:08"]
[BlackClock "0:00:17"]

1. e4 {[%clk 0:03:00]}  c5 {[%clk 0:02:58]} 2. Nc3 {[%clk 0:03:00]}  Nc6 {[%clk 0:02:57]} 3. Bb5 {[%clk 0:03:00]}  Nd4 {[%clk 0:02:57]} 4. Nf3 {[%clk 0:03:00]}  a6 {[%clk 0:02:56]} 5. Bd3 {[%clk 0:02:59]}  Nxf3+ {[%clk 0:02:52]} 6. Qxf3 {[%clk 0:02:59]}  e6 {[%clk 0:02:53]} 7. O-O {[%clk 0:02:53]}  Ne7 {[%clk 0:02:53]} 8. Re1 {[%clk 0:02:50]}  Ng6 {[%clk 0:02:52]} 9. e5 {[%clk 0:02:46]}  Qc7 {[%clk 0:02:50]} 10. Qg3 {[%clk 0:02:39]}  d6 {[%clk 0:02:49]} 11. f4 {[%clk 0:02:29]}  dxe5 {[%clk 0:02:46]} 12. fxe5 {[%clk 0:02:23]}  c4 {[%clk 0:02:46]} 13. Be4 {[%clk 0:02:13]}  Bc5+ {[%clk 0:02:35]} 14. Kh1 {[%clk 0:02:11]}  Bd4 {[%clk 0:02:34]} 15. Bxg6 {[%clk 0:02:02]}  hxg6 {[%clk 0:02:35]} 16. d3 {[%clk 0:02:02]}  b5 {[%clk 0:02:27]} 17. dxc4 {[%clk 0:01:52]}  bxc4 {[%clk 0:02:10]} 18. Bf4 {[%clk 0:01:41]}  Bb7 {[%clk 0:01:59]} 19. Rad1 {[%clk 0:01:41]}  O-O-O {[%clk 0:01:56]} 20. Ne4 {[%clk 0:01:30]}  Bxe4 {[%clk 0:01:31]} 21. Rxe4 {[%clk 0:01:29]}  Bxb2 {[%clk 0:01:30]} 22. Rd6 {[%clk 0:01:14]}  Rxd6 {[%clk 0:00:49]} 23. exd6 {[%clk 0:01:14]}  Qc6 {[%clk 0:00:50]} 24. Qf3 {[%clk 0:01:00]}  Kd7 {[%clk 0:00:22]} 25. Rxc4 {[%clk 0:00:52]}  Qxf3 {[%clk 0:00:20]} 26. gxf3 {[%clk 0:00:51]}  e5 {[%clk 0:00:21]} 27. Bg3 {[%clk 0:00:46]}  Kxd6 {[%clk 0:00:20]} 28. Rb4 {[%clk 0:00:46]}  Bc3 {[%clk 0:00:17]} 29. Rb6+ {[%clk 0:00:45]}  Kd5 {[%clk 0:00:17]} 30. Rxa6 {[%clk 0:00:44]}  f5 {[%clk 0:00:18]} 31. Ra7 {[%clk 0:00:38]}  f4 {[%clk 0:00:18]} 32. Bf2 {[%clk 0:00:38]}  e4 {[%clk 0:00:17]} 33. Rc7 {[%clk 0:00:25]}  e3 {[%clk 0:00:14]} 34. Bxe3 {[%clk 0:00:16]}  fxe3 {[%clk 0:00:15]} 35. Rxc3 {[%clk 0:00:16]}  Re8 {[%clk 0:00:16]} 36. Rd3+ {[%clk 0:00:15]}  Kc4 {[%clk 0:00:16]} 37. Rd1 {[%clk 0:00:14]}  Kc3 {[%clk 0:00:16]} 38. Kg2 {[%clk 0:00:14]}  Kxc2 {[%clk 0:00:17]} 39. Re1 {[%clk 0:00:14]}  Kd2 {[%clk 0:00:17]} 40. Kf1 {[%clk 0:00:15]}  e2+ {[%clk 0:00:17]} 41. Kf2 {[%clk 0:00:15]}  Kd3 {[%clk 0:00:16]} 42. Rb1 {[%clk 0:00:14]}  Re6 {[%clk 0:00:11]} 43. Ke1 {[%clk 0:00:15]}  Ra6 {[%clk 0:00:07]} 44. Rb3+ {[%clk 0:00:16]}  Kc4 {[%clk 0:00:08]} 45. Re3 {[%clk 0:00:16]}  Rxa2 {[%clk 0:00:08]} 46. Rxe2 {[%clk 0:00:17]}  Ra1+ {[%clk 0:00:09]} 47. Kf2 {[%clk 0:00:17]}  Kd4 {[%clk 0:00:10]} 48. Kg3 {[%clk 0:00:17]}  Ra7 {[%clk 0:00:10]} 49. Re4+ {[%clk 0:00:18]}  Kd5 {[%clk 0:00:10]} 50. Rg4 {[%clk 0:00:19]}  Ra6 {[%clk 0:00:11]} 51. f4 {[%clk 0:00:19]}  Ke4 {[%clk 0:00:11]} 52. Rg5 {[%clk 0:00:20]}  Ra3+ {[%clk 0:00:10]} 53. Kg4 {[%clk 0:00:20]}  Ra1 {[%clk 0:00:11]} 54. Re5+ {[%clk 0:00:21]}  Kd4 {[%clk 0:00:11]} 55. h4 {[%clk 0:00:21]}  Rg1+ {[%clk 0:00:11]} 56. Kh3 {[%clk 0:00:22]}  Kd3 {[%clk 0:00:11]} 57. Rg5 {[%clk 0:00:21]}  Rxg5 {[%clk 0:00:10]} 58. fxg5 {[%clk 0:00:19]}  Ke3 {[%clk 0:00:09]} 59. Kg4 {[%clk 0:00:19]}  Ke4 {[%clk 0:00:09]} 60. h5 {[%clk 0:00:19]}  gxh5+ {[%clk 0:00:08]} 61. Kxh5 {[%clk 0:00:19]}  Kf5 {[%clk 0:00:09]} 62. Kh4 {[%clk 0:00:12]}  g6 {[%clk 0:00:08]} 63. Kh3 {[%clk 0:00:12]}  Kf4 {[%clk 0:00:09]} 64. Kh4 {[%clk 0:00:12]}  Kf5 {[%clk 0:00:08]} 65. Kh3 {[%clk 0:00:12]}  Kf4 {[%clk 0:00:05]} 66. Kh4 {[%clk 0:00:12]}  Kf3 {[%clk 0:00:06]} 67. Kh3 {[%clk 0:00:12]}  Ke4 {[%clk 0:00:07]} 68. Kg4 {[%clk 0:00:10]}  Ke5 {[%clk 0:00:07]} 69. Kg3 {[%clk 0:00:07]}  Kf5 {[%clk 0:00:08]} 70. Kh4 {[%clk 0:00:07]}  Kf4 {[%clk 0:00:09]} 71. Kh3 {[%clk 0:00:08]}  Kxg5 {[%clk 0:00:10]} 72. Kg3 {[%clk 0:00:08]}  Kf5 {[%clk 0:00:11]} 73. Kf3 {[%clk 0:00:08]}  g5 {[%clk 0:00:11]} 74. Kg3 {[%clk 0:00:09]}  g4 {[%clk 0:00:12]} 75. Kg2 {[%clk 0:00:08]}  Kg5 {[%clk 0:00:13]} 76. Kg3 {[%clk 0:00:07]}  Kf5 {[%clk 0:00:13]} 77. Kg2 {[%clk 0:00:07]}  Kf4 {[%clk 0:00:13]} 78. Kf2 {[%clk 0:00:07]}  g3+ {[%clk 0:00:14]} 79. Kg2 {[%clk 0:00:08]}  Kg4 {[%clk 0:00:15]} 80. Kg1 {[%clk 0:00:08]}  Kf3 {[%clk 0:00:16]} 81. Kf1 {[%clk 0:00:08]}  g2+ {[%clk 0:00:16]} 82. Kg1 {[%clk 0:00:08]}  Kg3 {[%clk 0:00:17]} 1/2-1/2


[Site "https://www.chess.com"]

[Event "Titled Tuesday Blitz April 12 Late 2022"]
[White "Ibarra Jerez, Jose Carlos"]
[Black "Romanchuk, Viktor"]
[WhiteFideId "2226332"]
[BlackFideId "14109271"]
[WhiteElo "2626"]
[BlackElo "2242"]
[Result "1-0"]
[Round "02"]
[TimeControl "180+1"]
[Date "2022.04.12"]
[WhiteClock "0:00:03"]
[BlackClock "0:00:01"]

1. Nc3 {[%clk 0:03:00]}  d5 {[%clk 0:02:57]} 2. e4 {[%clk 0:03:00]}  dxe4 {[%clk 0:02:52]} 3. Nxe4 {[%clk 0:03:00]}  Bf5 {[%clk 0:02:51]} 4. Ng3 {[%clk 0:02:58]}  Bg6 {[%clk 0:02:51]} 5. h4 {[%clk 0:02:58]}  h6 {[%clk 0:02:51]} 6. Nf3 {[%clk 0:02:52]}  Nd7 {[%clk 0:02:50]} 7. h5 {[%clk 0:02:49]}  Bh7 {[%clk 0:02:50]} 8. d4 {[%clk 0:02:49]}  e6 {[%clk 0:02:48]} 9. Bd3 {[%clk 0:02:49]}  Bxd3 {[%clk 0:02:47]} 10. Qxd3 {[%clk 0:02:49]}  Ngf6 {[%clk 0:02:47]} 11. Bd2 {[%clk 0:02:41]}  Bd6 {[%clk 0:02:45]} 12. Ne4 {[%clk 0:02:39]}  Nxe4 {[%clk 0:02:43]} 13. Qxe4 {[%clk 0:02:40]}  c6 {[%clk 0:02:44]} 14. O-O-O {[%clk 0:02:34]}  Nf6 {[%clk 0:02:39]} 15. Qe2 {[%clk 0:02:31]}  Qc7 {[%clk 0:02:38]} 16. Ne5 {[%clk 0:02:28]}  O-O-O {[%clk 0:02:32]} 17. f4 {[%clk 0:02:12]}  c5 {[%clk 0:02:28]} 18. dxc5 {[%clk 0:02:11]}  Bxc5 {[%clk 0:02:24]} 19. Rh3 {[%clk 0:02:08]}  Kb8 {[%clk 0:02:22]} 20. Rc3 {[%clk 0:02:05]}  Nd5 {[%clk 0:02:15]} 21. Rb3 {[%clk 0:01:58]}  Rd6 {[%clk 0:02:07]} 22. a3 {[%clk 0:01:33]}  Rc8 {[%clk 0:02:03]} 23. c4 {[%clk 0:01:21]}  Nb6 {[%clk 0:01:25]} 24. Rc3 {[%clk 0:00:58]}  Bd4 {[%clk 0:01:20]} 25. Rc2 {[%clk 0:00:58]}  f6 {[%clk 0:01:15]} 26. Nf3 {[%clk 0:00:48]}  Qd7 {[%clk 0:00:48]} 27. Kb1 {[%clk 0:00:25]}  Na4 {[%clk 0:00:36]} 28. Bb4 {[%clk 0:00:24]}  Bc5 {[%clk 0:00:33]} 29. Rxd6 {[%clk 0:00:22]}  Qxd6 {[%clk 0:00:33]} 30. Bxc5 {[%clk 0:00:20]}  Nxc5 {[%clk 0:00:32]} 31. g3 {[%clk 0:00:20]}  Qd3 {[%clk 0:00:28]} 32. Qxd3 {[%clk 0:00:16]}  Nxd3 {[%clk 0:00:29]} 33. Nd4 {[%clk 0:00:16]}  e5 {[%clk 0:00:17]} 34. Ne6 {[%clk 0:00:16]}  exf4 {[%clk 0:00:16]} 35. gxf4 {[%clk 0:00:17]}  Re8 {[%clk 0:00:14]} 36. f5 {[%clk 0:00:17]}  Re7 {[%clk 0:00:12]} 37. Rg2 {[%clk 0:00:15]}  Ne5 {[%clk 0:00:08]} 38. b3 {[%clk 0:00:15]}  Nf3 {[%clk 0:00:06]} 39. Nxg7 {[%clk 0:00:11]}  Nd4 {[%clk 0:00:04]} 40. Ne6 {[%clk 0:00:10]}  Nxe6 {[%clk 0:00:02]} 41. Re2 {[%clk 0:00:08]}  Kc7 {[%clk 0:00:01]} 42. fxe6 {[%clk 0:00:07]}  Kd6 {[%clk 0:00:01]} 43. b4 {[%clk 0:00:03]} 1-0


[Site "https://www.chess.com"]

[Event "Titled Tuesday Blitz April 12 Late 2022"]
[White "Isajevsky, Anton"]
[Black "Bernat, David"]
[WhiteFideId "4142500"]
[BlackFideId "2099225"]
[WhiteElo "2510"]
[BlackElo "2298"]
[Result "1-0"]
[Round "02"]
[TimeControl "180+1"]
[Date "2022.04.13"]
[WhiteClock "0:00:28"]
[BlackClock "0:00:13"]

1. c4 {[%clk 0:02:56]}  c5 {[%clk 0:02:58]} 2. Nc3 {[%clk 0:02:56]}  g6 {[%clk 0:02:58]} 3. g3 {[%clk 0:02:52]}  Bg7 {[%clk 0:02:58]} 4. Bg2 {[%clk 0:02:53]}  Nc6 {[%clk 0:02:58]} 5. Rb1 {[%clk 0:02:53]}  d6 {[%clk 0:02:58]} 6. a3 {[%clk 0:02:53]}  a5 {[%clk 0:02:59]} 7. Nf3 {[%clk 0:02:49]}  e5 {[%clk 0:02:59]} 8. O-O {[%clk 0:02:48]}  Nge7 {[%clk 0:03:00]} 9. Ne1 {[%clk 0:02:48]}  O-O {[%clk 0:03:00]} 10. Nc2 {[%clk 0:02:49]}  a4 {[%clk 0:02:59]} 11. Ne3 {[%clk 0:02:48]}  Nd4 {[%clk 0:02:57]} 12. d3 {[%clk 0:02:42]}  Nec6 {[%clk 0:02:33]} 13. Ned5 {[%clk 0:02:37]}  Be6 {[%clk 0:02:26]} 14. e3 {[%clk 0:02:36]}  Nf5 {[%clk 0:02:10]} 15. Nxa4 {[%clk 0:02:34]}  Bxd5 {[%clk 0:02:09]} 16. Bxd5 {[%clk 0:02:30]}  Nfe7 {[%clk 0:02:08]} 17. Bg2 {[%clk 0:02:28]}  f5 {[%clk 0:02:08]} 18. Nc3 {[%clk 0:02:19]}  g5 {[%clk 0:01:37]} 19. b4 {[%clk 0:02:14]}  cxb4 {[%clk 0:01:36]} 20. axb4 {[%clk 0:02:14]}  e4 {[%clk 0:01:36]} 21. Nd5 {[%clk 0:01:38]}  exd3 {[%clk 0:01:14]} 22. Qxd3 {[%clk 0:01:36]}  Ne5 {[%clk 0:01:14]} 23. Nxe7+ {[%clk 0:01:36]}  Qxe7 {[%clk 0:01:13]} 24. Qd5+ {[%clk 0:01:36]}  Kh8 {[%clk 0:01:13]} 25. Qxb7 {[%clk 0:01:29]}  Qxb7 {[%clk 0:01:07]} 26. Bxb7 {[%clk 0:01:30]}  Rab8 {[%clk 0:00:59]} 27. Bd5 {[%clk 0:01:30]}  Rfc8 {[%clk 0:00:42]} 28. Be6 {[%clk 0:01:16]}  Rc7 {[%clk 0:00:30]} 29. Bxf5 {[%clk 0:01:13]}  Rxc4 {[%clk 0:00:30]} 30. b5 {[%clk 0:01:10]}  Rc5 {[%clk 0:00:21]} 31. Be4 {[%clk 0:00:55]}  Rcxb5 {[%clk 0:00:19]} 32. Rxb5 {[%clk 0:00:52]}  Rxb5 {[%clk 0:00:20]} 33. Ba3 {[%clk 0:00:52]}  d5 {[%clk 0:00:19]} 34. Bg2 {[%clk 0:00:52]}  Ra5 {[%clk 0:00:17]} 35. Be7 {[%clk 0:00:45]}  h6 {[%clk 0:00:17]} 36. Rd1 {[%clk 0:00:46]}  Nc6 {[%clk 0:00:14]} 37. Bd6 {[%clk 0:00:42]}  Ra1 {[%clk 0:00:11]} 38. Rxa1 {[%clk 0:00:41]}  Bxa1 {[%clk 0:00:12]} 39. Bxd5 {[%clk 0:00:42]}  Nd8 {[%clk 0:00:13]} 40. Kg2 {[%clk 0:00:41]}  Kg7 {[%clk 0:00:13]} 41. f4 {[%clk 0:00:40]}  Nf7 {[%clk 0:00:14]} 42. Bxf7 {[%clk 0:00:37]}  Kxf7 {[%clk 0:00:15]} 43. Kf3 {[%clk 0:00:37]}  Kg6 {[%clk 0:00:15]} 44. g4 {[%clk 0:00:30]}  gxf4 {[%clk 0:00:14]} 45. exf4 {[%clk 0:00:30]}  h5 {[%clk 0:00:15]} 46. Be5 {[%clk 0:00:27]}  hxg4+ {[%clk 0:00:15]} 47. Kxg4 {[%clk 0:00:28]}  Bxe5 {[%clk 0:00:13]} 48. fxe5 {[%clk 0:00:28]} 1-0


[Site "https://www.chess.com"]

[Event "Titled Tuesday Blitz April 12 Late 2022"]
[White "Janturin, Artur"]
[Black "Plotnikov, Pavel"]
[WhiteFideId "4130022"]
[BlackFideId "4170342"]
[WhiteElo "2361"]
[BlackElo "2298"]
[Result "0-1"]
[Round "02"]
[TimeControl "180+1"]
[Date "2022.04.13"]
[WhiteClock "0:00:09"]
[BlackClock "0:01:09"]

1. b3 {[%clk 0:02:00]}  Nf6 {[%clk 0:02:58]} 2. Bb2 {[%clk 0:02:01]}  b6 {[%clk 0:02:57]} 3. Bxf6 {[%clk 0:02:00]}  exf6 {[%clk 0:02:57]} 4. c4 {[%clk 0:02:00]}  Bb7 {[%clk 0:02:57]} 5. Nc3 {[%clk 0:02:01]}  Be7 {[%clk 0:02:51]} 6. Nf3 {[%clk 0:02:01]}  O-O {[%clk 0:02:52]} 7. g3 {[%clk 0:02:01]}  Na6 {[%clk 0:02:50]} 8. Bg2 {[%clk 0:02:00]}  c6 {[%clk 0:02:48]} 9. O-O {[%clk 0:01:59]}  f5 {[%clk 0:02:48]} 10. d4 {[%clk 0:01:57]}  Bf6 {[%clk 0:02:46]} 11. e3 {[%clk 0:01:57]}  Qe7 {[%clk 0:02:41]} 12. Ne1 {[%clk 0:01:53]}  Rfe8 {[%clk 0:02:40]} 13. Nd3 {[%clk 0:01:53]}  Nc7 {[%clk 0:02:37]} 14. Qc2 {[%clk 0:01:47]}  g6 {[%clk 0:02:37]} 15. Rac1 {[%clk 0:01:46]}  Rad8 {[%clk 0:02:32]} 16. Rfd1 {[%clk 0:01:45]}  Ne6 {[%clk 0:02:29]} 17. b4 {[%clk 0:01:40]}  Ng5 {[%clk 0:02:28]} 18. b5 {[%clk 0:01:25]}  Ne4 {[%clk 0:02:27]} 19. bxc6 {[%clk 0:01:24]}  dxc6 {[%clk 0:02:26]} 20. c5 {[%clk 0:01:19]}  h5 {[%clk 0:01:59]} 21. Nb4 {[%clk 0:01:07]}  a5 {[%clk 0:01:53]} 22. Nd3 {[%clk 0:00:50]}  b5 {[%clk 0:01:53]} 23. Rb1 {[%clk 0:00:31]}  Ba6 {[%clk 0:01:49]} 24. Nf4 {[%clk 0:00:19]}  h4 {[%clk 0:01:44]} 25. Nce2 {[%clk 0:00:15]}  hxg3 {[%clk 0:01:43]} 26. hxg3 {[%clk 0:00:15]}  Nxf2 {[%clk 0:01:40]} 27. Kxf2 {[%clk 0:00:15]}  Qxe3+ {[%clk 0:01:40]} 28. Kf1 {[%clk 0:00:15]}  b4 {[%clk 0:01:41]} 29. Rd3 {[%clk 0:00:14]}  Bxd3 {[%clk 0:01:36]} 30. Qxd3 {[%clk 0:00:15]}  Bxd4 {[%clk 0:01:28]} 31. Qxe3 {[%clk 0:00:14]}  Rxe3 {[%clk 0:01:27]} 32. Bxc6 {[%clk 0:00:14]}  Bxc5 {[%clk 0:01:25]} 33. Rc1 {[%clk 0:00:14]}  Bf8 {[%clk 0:01:21]} 34. Kf2 {[%clk 0:00:13]}  Ra3 {[%clk 0:01:20]} 35. Bd5 {[%clk 0:00:13]}  Rd7 {[%clk 0:01:19]} 36. Bc4 {[%clk 0:00:12]}  Bc5+ {[%clk 0:01:18]} 37. Kg2 {[%clk 0:00:11]}  Be3 {[%clk 0:01:18]} 38. Rc2 {[%clk 0:00:11]}  Kg7 {[%clk 0:01:15]} 39. Bb5 {[%clk 0:00:09]}  Re7 {[%clk 0:01:12]} 40. Nd5 {[%clk 0:00:09]}  Rb7 {[%clk 0:01:11]} 41. Bc4 {[%clk 0:00:09]}  a4 {[%clk 0:01:08]} 42. Nxe3 {[%clk 0:00:09]}  Rxe3 {[%clk 0:01:08]} 43. Nf4 {[%clk 0:00:09]}  b3 {[%clk 0:01:07]} 44. axb3 {[%clk 0:00:09]}  axb3 {[%clk 0:01:08]} 45. Rb2 {[%clk 0:00:09]}  Rc3 {[%clk 0:01:09]} 46. Bd5 {[%clk 0:00:09]}  Rc2+ {[%clk 0:01:09]} 47. Rxc2 {[%clk 0:00:09]}  bxc2 {[%clk 0:01:10]} 48. Nd3 {[%clk 0:00:09]}  Rd7 {[%clk 0:01:09]} 0-1


[Site "https://www.chess.com"]

[Event "Titled Tuesday Blitz April 12 Late 2022"]
[White "Jaracz, Pawel"]
[Black "Bibasa, Bob"]
[WhiteFideId "1102222"]
[BlackFideId "10000240"]
[WhiteElo "2429"]
[BlackElo "2056"]
[Result "1-0"]
[Round "02"]
[TimeControl "180+1"]
[Date "2022.04.13"]
[WhiteClock "0:00:22"]
[BlackClock "0:00:02"]

1. d4 {[%clk 0:03:00]}  Nf6 {[%clk 0:03:00]} 2. c4 {[%clk 0:03:01]}  e6 {[%clk 0:03:00]} 3. Nc3 {[%clk 0:03:01]}  Bb4 {[%clk 0:03:00]} 4. Bg5 {[%clk 0:02:59]}  b6 {[%clk 0:02:57]} 5. e4 {[%clk 0:02:56]}  Bxc3+ {[%clk 0:02:56]} 6. bxc3 {[%clk 0:02:56]}  h6 {[%clk 0:02:56]} 7. Bxf6 {[%clk 0:02:55]}  Qxf6 {[%clk 0:02:56]} 8. g3 {[%clk 0:02:51]}  Bb7 {[%clk 0:02:56]} 9. Bg2 {[%clk 0:02:51]}  d6 {[%clk 0:02:55]} 10. f4 {[%clk 0:02:48]}  e5 {[%clk 0:02:53]} 11. Qd2 {[%clk 0:02:47]}  Nd7 {[%clk 0:02:49]} 12. Ne2 {[%clk 0:02:45]}  c5 {[%clk 0:02:46]} 13. O-O {[%clk 0:02:44]}  Qe7 {[%clk 0:02:42]} 14. g4 {[%clk 0:02:39]}  f6 {[%clk 0:02:29]} 15. Ng3 {[%clk 0:02:38]}  g6 {[%clk 0:02:24]} 16. a4 {[%clk 0:02:35]}  a5 {[%clk 0:02:18]} 17. Rab1 {[%clk 0:02:34]}  O-O-O {[%clk 0:02:18]} 18. f5 {[%clk 0:02:20]}  g5 {[%clk 0:02:16]} 19. Rfd1 {[%clk 0:02:12]}  Kc7 {[%clk 0:02:06]} 20. Nf1 {[%clk 0:02:01]}  Ba6 {[%clk 0:02:03]} 21. Ne3 {[%clk 0:02:01]}  Bb7 {[%clk 0:01:56]} 22. Nd5+ {[%clk 0:01:58]}  Bxd5 {[%clk 0:01:56]} 23. cxd5 {[%clk 0:01:59]}  h5 {[%clk 0:01:51]} 24. Qe2 {[%clk 0:01:50]}  hxg4 {[%clk 0:01:50]} 25. Qb5 {[%clk 0:01:48]}  Rb8 {[%clk 0:01:42]} 26. Bf1 {[%clk 0:01:42]}  Qh7 {[%clk 0:01:17]} 27. Rd2 {[%clk 0:01:41]}  g3 {[%clk 0:01:11]} 28. h3 {[%clk 0:01:41]}  g4 {[%clk 0:01:04]} 29. dxc5 {[%clk 0:01:26]}  dxc5 {[%clk 0:00:47]} 30. Qc6+ {[%clk 0:01:21]}  Kd8 {[%clk 0:00:47]} 31. Bb5 {[%clk 0:01:18]}  gxh3 {[%clk 0:00:41]} 32. d6 {[%clk 0:01:18]}  h2+ {[%clk 0:00:41]} 33. Kh1 {[%clk 0:01:18]}  Rc8 {[%clk 0:00:34]} 34. Qb7 {[%clk 0:01:16]}  Rg8 {[%clk 0:00:10]} 35. Ba6 {[%clk 0:01:11]}  Rb8 {[%clk 0:00:09]} 36. Qc7+ {[%clk 0:01:11]}  Ke8 {[%clk 0:00:10]} 37. Rg2 {[%clk 0:01:03]}  Rd8 {[%clk 0:00:09]} 38. Bb5 {[%clk 0:01:01]}  Qf7 {[%clk 0:00:05]} 39. Bc6 {[%clk 0:00:55]}  Rg4 {[%clk 0:00:04]} 40. Bd5 {[%clk 0:00:53]}  Qh7 {[%clk 0:00:04]} 41. Rxb6 {[%clk 0:00:42]}  Qg7 {[%clk 0:00:03]} 42. Be6 {[%clk 0:00:40]}  Rf4 {[%clk 0:00:02]} 43. Rb1 {[%clk 0:00:32]}  Rf2 {[%clk 0:00:02]} 44. Rxg3 {[%clk 0:00:23]}  Qxg3 {[%clk 0:00:02]} 45. Bxd7+ {[%clk 0:00:23]}  Kf7 {[%clk 0:00:02]} 46. Be6+ {[%clk 0:00:22]}  Kf8 {[%clk 0:00:02]} 47. Qf7# {[%clk 0:00:22]} 1-0


[Site "https://www.chess.com"]

[Event "Titled Tuesday Blitz April 12 Late 2022"]
[White "Kamsky, Gata"]
[Black "Koelle, Tobias"]
[WhiteFideId "2000024"]
[BlackFideId "16207378"]
[WhiteElo "2645"]
[BlackElo "2541"]
[Result "1-0"]
[Round "02"]
[TimeControl "180+1"]
[Date "2022.04.12"]
[WhiteClock "0:00:42"]
[BlackClock "0:00:06"]

1. d4 {[%clk 0:03:00]}  Nf6 {[%clk 0:02:58]} 2. Nf3 {[%clk 0:02:57]}  d5 {[%clk 0:02:57]} 3. Bf4 {[%clk 0:02:54]}  e6 {[%clk 0:02:57]} 4. e3 {[%clk 0:02:53]}  Nh5 {[%clk 0:02:49]} 5. Bg3 {[%clk 0:02:52]}  Be7 {[%clk 0:02:45]} 6. Nbd2 {[%clk 0:02:49]}  c5 {[%clk 0:02:42]} 7. c3 {[%clk 0:02:36]}  Nc6 {[%clk 0:02:41]} 8. Ne5 {[%clk 0:02:35]}  Nxg3 {[%clk 0:02:40]} 9. hxg3 {[%clk 0:02:35]}  Nxe5 {[%clk 0:02:34]} 10. dxe5 {[%clk 0:02:35]}  Qc7 {[%clk 0:02:32]} 11. Bb5+ {[%clk 0:02:33]}  Kf8 {[%clk 0:02:28]} 12. Nf3 {[%clk 0:02:17]}  a6 {[%clk 0:02:28]} 13. Bd3 {[%clk 0:02:15]}  g6 {[%clk 0:02:26]} 14. e4 {[%clk 0:02:14]}  b5 {[%clk 0:02:21]} 15. g4 {[%clk 0:02:11]}  Bb7 {[%clk 0:02:19]} 16. Qe2 {[%clk 0:02:11]}  Rd8 {[%clk 0:02:15]} 17. Kf1 {[%clk 0:01:59]}  Kg7 {[%clk 0:02:11]} 18. Re1 {[%clk 0:01:52]}  h6 {[%clk 0:02:09]} 19. g3 {[%clk 0:01:51]}  Qc6 {[%clk 0:02:05]} 20. Kg2 {[%clk 0:01:39]}  b4 {[%clk 0:01:41]} 21. c4 {[%clk 0:01:36]}  dxe4 {[%clk 0:01:29]} 22. Bxe4 {[%clk 0:01:36]}  Qxe4 {[%clk 0:01:30]} 23. Qxe4 {[%clk 0:01:37]}  Bxe4 {[%clk 0:01:31]} 24. Rxe4 {[%clk 0:01:37]}  Rd3 {[%clk 0:01:30]} 25. b3 {[%clk 0:01:35]}  a5 {[%clk 0:01:29]} 26. Rhe1 {[%clk 0:01:33]}  a4 {[%clk 0:01:29]} 27. R4e3 {[%clk 0:01:33]}  Rhd8 {[%clk 0:01:26]} 28. Rxd3 {[%clk 0:01:32]}  Rxd3 {[%clk 0:01:27]} 29. Re3 {[%clk 0:01:28]}  Rd7 {[%clk 0:01:22]} 30. Kf1 {[%clk 0:01:25]}  a3 {[%clk 0:01:20]} 31. Ke2 {[%clk 0:01:24]}  g5 {[%clk 0:00:46]} 32. Rd3 {[%clk 0:01:24]}  Rxd3 {[%clk 0:00:43]} 33. Kxd3 {[%clk 0:01:24]}  Bd8 {[%clk 0:00:41]} 34. Ke4 {[%clk 0:01:24]}  Bc7 {[%clk 0:00:39]} 35. Ne1 {[%clk 0:01:21]}  f6 {[%clk 0:00:31]} 36. exf6+ {[%clk 0:01:20]}  Kxf6 {[%clk 0:00:31]} 37. f4 {[%clk 0:01:20]}  Bd6 {[%clk 0:00:29]} 38. Nd3 {[%clk 0:01:18]}  Kg6 {[%clk 0:00:27]} 39. Kf3 {[%clk 0:01:00]}  Kf6 {[%clk 0:00:26]} 40. Nf2 {[%clk 0:01:00]}  Be7 {[%clk 0:00:25]} 41. Ne4+ {[%clk 0:01:00]}  Kg6 {[%clk 0:00:25]} 42. Ke3 {[%clk 0:00:56]}  Bf8 {[%clk 0:00:24]} 43. Nd2 {[%clk 0:00:52]}  h5 {[%clk 0:00:17]} 44. Kf3 {[%clk 0:00:48]}  gxf4 {[%clk 0:00:12]} 45. gxf4 {[%clk 0:00:48]}  hxg4+ {[%clk 0:00:06]} 46. Kxg4 {[%clk 0:00:48]}  Bg7 {[%clk 0:00:06]} 47. Nf3 {[%clk 0:00:44]}  Bc3 {[%clk 0:00:05]} 48. Ng5 {[%clk 0:00:43]}  Bd4 {[%clk 0:00:01]} 49. Nxe6 {[%clk 0:00:43]}  Be3 {[%clk 0:00:02]} 50. Ng5 {[%clk 0:00:42]}  Kf6 {[%clk 0:00:02]} 51. Kf3 {[%clk 0:00:41]}  Bc1 {[%clk 0:00:03]} 52. Ke4 {[%clk 0:00:42]}  Bd2 {[%clk 0:00:02]} 53. Nf3 {[%clk 0:00:42]}  Bc1 {[%clk 0:00:03]} 54. Ne5 {[%clk 0:00:42]}  Ke6 {[%clk 0:00:03]} 55. Nd3 {[%clk 0:00:42]}  Bd2 {[%clk 0:00:02]} 56. Nxc5+ {[%clk 0:00:42]}  Kd6 {[%clk 0:00:03]} 57. Nd3 {[%clk 0:00:43]}  Kc6 {[%clk 0:00:03]} 58. f5 {[%clk 0:00:43]}  Bg5 {[%clk 0:00:04]} 59. Ke5 {[%clk 0:00:43]}  Kd7 {[%clk 0:00:05]} 60. Nxb4 {[%clk 0:00:42]}  Ke8 {[%clk 0:00:06]} 61. Nd3 {[%clk 0:00:42]} 1-0


[Site "https://www.chess.com"]